[Event "1st Serbian League 2022"]
[Site "Vrnjacka Banja"]
[Date "2022.09.26"]
[Round "7.19"]
[White "Predojevic, Borki"]
[Black "Krstulovic, Alex"]
[Result "1/2-1/2"]
[ECO "D02"]
[WhiteElo "2584"]
[BlackElo "2411"]
[Annotator "TA"]
[PlyCount "45"]
[EventDate "2022.09.20"]
[EventType "team-tourn"]
[EventCountry "SRB"]
[SourceTitle "playchess.com"]
[Source "ChessBase"]
[SourceQuality "1"]
[TimeControl "40/5400+30:1800+30"]

{[%evp 9,45,29,18,18,19,17,21,13,29,22,31,22,26,28,35,31,37,38,25,27,32,28,20,19,20,30,20,9,19,28,24,6,12,0,0,0,0,0]} 1. Nf3 {[%emt 0:00:04]} d5 {[%emt 0:00:10]} 2. g3 {[%emt 0:00:06]} Nc6 {[%emt 0:00:06]} 3. d4 {[%emt 0:00:07]} Bf5 {[%emt 0:00:06]} 4. Bg2 {[%emt 0:00:09]} Nb4 {[%emt 0:00:05]} 5. Na3 {[%emt 0:00:05]} e6 {[%emt 0:00:06]} 6. Nh4 {[%emt 0:00:04] D02: 1 d4 d5 2 Nf3 sidelines, including 2...Nf6 3 g3 and 2...Nf6 3 Bf4.} Bg4 {[%emt 0:02:14]} 7. c3 {[%emt 0:00:09]} Nc6 {[%emt 0:00:06]} 8. Qb3 {[%emt 0:00:04]} Rb8 {[%emt 0:01:14]} 9. e4 {[%emt 0:00:33]} dxe4 {[%emt 0:00:22]} 10. Bxe4 {[%emt 0:00:05]} Be7 {[%emt 0:00:40]} 11. Nc4 {[%emt 0:00:03] [#]} (11. h3 {seems wilder.} Nf6 12. Bxc6+ bxc6 13. Qc4) 11... Bh3 $146 {[%emt 0:24:14]} ({Predecessor:} 11... Nf6 12. Bg2 O-O 13. O-O Nd5 14. Nf3 Bxf3 15. Bxf3 Bg5 16. Re1 Bxc1 17. Raxc1 b5 {½-½ (113) Praggnanandhaa,R (2602)-Saric,I (2655) Caleta 2020}) 12. Ng2 {[%emt 0:00:17]} Nf6 {[%emt 0:01:42]} 13. Bf3 {[%emt 0:00:04]} Bg4 {[%emt 0:04:18]} 14. Bxg4 {[%emt 0:00:58]} Nxg4 {[%emt 0:00:02]} 15. a4 {[%emt 0:00:09]} a6 {[%emt 0:09:40]} 16. O-O {[%emt 0:00:17]} b5 {[%emt 0:03:43]} 17. axb5 {[%emt 0:09:16]} axb5 {[%emt 0:00:33]} 18. Nce3 {[%emt 0:09:12]} Nf6 {[%emt 0:08:01]} 19. Ra6 {[%emt 0:09:59]} Qd7 {[%emt 0:03:23]} 20. Rd1 {[%emt 0:14:07] Threatening d5.} Bd6 $1 {[%emt 0:10:51] The position is equal.} 21. d5 {[%emt 0:11:22]} Ne5 {[%emt 0:02:55]} 22. dxe6 {[%emt 0:09:15]} Nf3+ {[%emt 0:02:33]} 23. Kh1 {[%emt 0:20:34] Weighted Error Value: White=0.02 (flawless) /Black=0.01 (flawless)} 1/2-1/2

[Event "1st Serbian League 2022"]
[Site "Vrnjacka Banja"]
[Date "2022.09.26"]
[Round "7.20"]
[White "Sedlak, Nikola"]
[Black "Bogosavljevic, Boban"]
[Result "1/2-1/2"]
[WhiteElo "2466"]
[BlackElo "2533"]
[Annotator "TA"]
[PlyCount "35"]
[EventDate "2022.09.20"]
[EventType "team-tourn"]
[EventCountry "SRB"]
[SourceTitle "playchess.com"]
[Source "ChessBase"]
[SourceQuality "1"]
[TimeControl "40/5400+30:1800+30"]

{[%evp 18,19,26,24]} 1. Nf3 {[%emt 0:02:51]} Nf6 {[%emt 0:00:41]} 2. c4 {[%emt 0:00:31]} c5 {[%emt 0:00:31]} 3. Nc3 {[%emt 0:00:11]} Nc6 {[%emt 0:00:14]} 4. e3 {[%emt 0:00:37]} e6 {[%emt 0:00:12]} 5. d4 {[%emt 0:00:47]} d5 {[%emt 0:00:07]} 6. a3 {[%emt 0:00:39]} a6 {[%emt 0:00:53]} 7. dxc5 {[%emt 0:00:52]} Bxc5 {[%emt 0:00:10]} 8. b4 {[%emt 0:00:09]} Ba7 {[%emt 0:00:13]} 9. Bb2 {[%emt 0:00:26]} O-O {[%emt 0:00:20]} 10. Qc2 {[%emt 0:02:31] [#]} {Predecessor:} Bd7 $146 {D40: Queen's Gambit Declined: Semi-Tarrasch with 5 e3.} 11. Rd1 Rc8 12. g4 Nxg4 13. Rg1 Nge5 14. Be2 Nxf3+ 15. Bxf3 Ne5 16. Be2 dxc4 17. Ne4 c3 18. Bxc3 {1-0 (50) Duda,J (2743)-So,W (2770) Chess.com INT 2020} 1/2-1/2

[Event "1st Serbian League 2022"]
[Site "Vrnjacka Banja"]
[Date "2022.09.26"]
[Round "7.21"]
[White "Vuckovic, Bojan"]
[Black "Popovic, Dusan"]
[Result "1/2-1/2"]
[ECO "B60"]
[WhiteElo "2559"]
[BlackElo "2486"]
[Annotator "TA"]
[PlyCount "54"]
[EventDate "2022.09.20"]
[EventType "team-tourn"]
[EventCountry "SRB"]
[SourceTitle "playchess.com"]
[Source "ChessBase"]
[SourceQuality "1"]
[TimeControl "40/5400+30:1800+30"]

{[%evp 20,54,46,46,42,41,45,45,42,19,31,18,17,17,133,145,147,134,185,85,116,77,159,106,95,90,92,97,95,55,63,55,65,56,75,75,129]} 1. e4 {[%emt 0:00:10]} c5 {[%emt 0:00:07]} 2. Nf3 {[%emt 0:00:13]} d6 {[%emt 0:00:06]} 3. d4 {[%emt 0:00:15]} cxd4 {[%emt 0:00:06]} 4. Nxd4 {[%emt 0:00:04]} Nf6 {[%emt 0:00:07]} 5. Nc3 {[%emt 0:00:04]} a6 {[%emt 0:00:07]} 6. Bg5 {[%emt 0:00:35]} e6 {[%emt 0:00:41]} 7. f4 {[%emt 0:00:46]} Qb6 {[%emt 0:00:22]} 8. Qd2 {[%emt 0:01:31]} Nc6 {[%emt 0:00:13]} 9. Bxf6 {[%emt 0:06:46]} gxf6 {[%emt 0:00:25]} 10. Nb3 {[%emt 0:00:12]} Bd7 {[%emt 0:00:23]} 11. O-O-O {[%emt 0:05:09]} O-O-O {[%emt 0:00:17] B60: Sicilian: Richter-Rauzer: Unusual Black 6th moves and 6...Bd7 without 7 Qd2.} 12. Be2 {[%emt 0:01:31]} h5 {[%emt 0:00:07]} 13. Rhf1 {[%emt 0:01:55]} Kb8 {[%emt 0:00:48] White is slightly better.} 14. Kb1 {[%emt 0:00:44]} Ne7 {[%emt 0:01:09] [#]} 15. Rf3 $146 {[%emt 0:14:41]} (15. Nd4 $5 {[%cal Rf4f5]}) ({Predecessor:} 15. f5 Nc6 16. fxe6 fxe6 17. Rxf6 Ne5 18. Nd4 Bg7 19. Rxe6 Bxe6 20. Nxe6 Rd7 21. Nd5 {½-½ (48) Brkic,A (2565)-Sprenger,J (2490) Biograd 2018}) 15... f5 {[%emt 0:15:48]} 16. Rd3 {[%emt 0:10:36]} ({Of course not} 16. Qxd6+ Qxd6 17. Rxd6 Nd5 $1 18. Rxd5 exd5 19. exd5 Rg8 $11) 16... Bc6 {[%emt 0:21:33]} (16... Be8 $1 $11 {keeps the balance.}) 17. Rxd6 $16 {[%emt 0:11:25]} Rxd6 {[%emt 0:00:07]} 18. Qxd6+ {[%emt 0:00:05]} Ka7 {[%emt 0:27:08] [#]} (18... Qc7 $16) 19. Bf3 {[%emt 0:02:38]} (19. a4 $1 $18 {[%cal Ra4a5] is more deadly. Strongly threatening a5.} fxe4 20. Qe5) 19... Ng6 {[%emt 0:01:59]} 20. Qd2 {[%emt 0:06:30] White is more active.} Bh6 {[%emt 0:14:11]} (20... Nh4 $142) 21. exf5 {[%emt 0:11:12]} ({Weaker is} 21. Bxh5 Bxf4 22. Qe2 Bxh2 23. Bxg6 fxg6 $11) ({White should play} 21. g3) 21... Bxf4 {[%emt 0:01:04]} 22. Qe2 {[%emt 0:04:09]} exf5 {[%emt 0:04:19]} 23. Bxc6 {[%emt 0:01:05]} Qxc6 {[%emt 0:00:16]} 24. g3 {[%emt 0:10:40]} Be5 {[%emt 0:00:39]} 25. Nd5 {[%emt 0:00:10]} Rd8 {[%emt 0:03:25]} 26. c4 {[%emt 0:01:11]} Kb8 {[%emt 0:00:56]} 27. a3 {[%emt 0:01:42]} Re8 {[%emt 0:03:52] Weighted Error Value: White=0.21 (precise) /Black=0.20 (precise)} ({Better is} 27... Rc8) 1/2-1/2

[Event "1st Serbian League 2022"]
[Site "Vrnjacka Banja"]
[Date "2022.09.26"]
[Round "7.22"]
[White "Boskovic, Drasko"]
[Black "Roganovic, Milos"]
[Result "1/2-1/2"]
[ECO "B51"]
[WhiteElo "2415"]
[BlackElo "2487"]
[Annotator "TA"]
[PlyCount "46"]
[EventDate "2022.09.20"]
[EventType "team-tourn"]
[EventCountry "SRB"]
[SourceTitle "playchess.com"]
[Source "ChessBase"]
[SourceQuality "1"]
[TimeControl "40/5400+30:1800+30"]

{[%evp 9,46,18,25,-1,12,17,27,18,44,49,44,15,16,15,13,15,14,0,0,0,0,-8,0,0,0,-25,-18,-18,-17,-20,-10,-12,-15,-44,0,-22,0,-47,0]} 1. e4 {[%emt 0:00:09]} c5 {[%emt 0:00:16]} 2. Nf3 {[%emt 0:00:06]} d6 {[%emt 0:00:25]} 3. Bb5+ {[%emt 0:00:26]} Nd7 {[%emt 0:00:45]} 4. O-O {[%emt 0:00:24]} a6 {[%emt 0:01:17]} 5. Bd3 {[%emt 0:00:04]} Ngf6 {[%emt 0:01:36]} 6. a4 {[%emt 0:00:06] B51: Sicilian: Moscow Variation (3 Bb5+) without 3...Bd7.} g6 {[%emt 0:02:31]} 7. c3 {[%emt 0:00:52]} Bg7 {[%emt 0:06:31]} 8. Bc2 {[%emt 0:01:17] White has an edge.} Ne5 {[%emt 0:03:35]} 9. Nxe5 {[%emt 0:19:08]} dxe5 {[%emt 0:00:30] [#]} 10. Na3 $146 {[%emt 0:00:07]} ({Predecessor:} 10. d3 O-O 11. a5 Qc7 12. Nd2 Rd8 13. h3 Be6 14. Qe2 Nh5 15. Nc4 Nf4 16. Qf3 Bxc4 17. dxc4 {½-½ (39) Nguyen,V (2311)-Nguyen,H (2460) Can Tho 2012}) 10... Be6 {[%emt 0:12:33]} 11. Bb3 {[%emt 0:07:58]} Bxb3 {[%emt 0:08:13]} 12. Qxb3 {[%emt 0:00:05]} O-O {[%emt 0:05:44]} 13. Qxb7 {[%emt 0:20:00]} Qd6 $1 {[%emt 0:21:08] [#] ...Rfb8 is the strong threat.} 14. Nc4 {[%emt 0:08:28]} Qe6 {[%emt 0:00:09]} 15. d3 {[%emt 0:05:19]} Rfb8 {[%emt 0:00:06]} 16. Qc7 {[%emt 0:00:20][%csl LRc5,LRe5]} Nxe4 $1 {[%emt 0:00:13]} 17. Be3 {[%emt 0:02:52]} Rc8 {[%emt 0:05:07]} 18. Qb6 {[%emt 0:05:16] [#] Hoping for Qxe6.} Nd6 {[%emt 0:01:15]} 19. b4 {[%emt 0:12:28]} cxb4 {[%emt 0:05:23]} ({Don't play} 19... Nxc4 20. Qxe6 fxe6 21. dxc4 $14) 20. cxb4 {[%emt 0:00:59]} Rcb8 {[%emt 0:07:55]} ({But not} 20... Nxc4 21. Qxe6 fxe6 22. dxc4 $14) 21. Qc6 {[%emt 0:02:56]} Rc8 {[%emt 0:02:17]} 22. Qb6 {[%emt 0:00:44]} Rcb8 {[%emt 0:00:26]} ({Resist} 22... Nxc4 23. Qxe6 fxe6 24. dxc4 $14) (22... e4 $5 {[%cal Rg7a1]} 23. Ra3 Rcb8 $15) 23. Qc6 {[%emt 0:05:06]} Rc8 {[%emt 0:00:41] Weighted Error Value: White=0.08 (flawless) /Black=0.08 (flawless)} (23... e4 $15 {is more appropriate.} 24. Nb6 Bxa1 25. Nxa8 Bf6) 1/2-1/2

[Event "1st Serbian League 2022"]
[Site "Vrnjacka Banja"]
[Date "2022.09.26"]
[Round "7.23"]
[White "Zajic, Milan"]
[Black "Zegarac, Vuk"]
[Result "1/2-1/2"]
[ECO "B12"]
[WhiteElo "2402"]
[BlackElo "2336"]
[Annotator "TA"]
[PlyCount "71"]
[EventDate "2022.09.20"]
[EventType "team-tourn"]
[EventCountry "SRB"]
[SourceTitle "playchess.com"]
[Source "ChessBase"]
[SourceQuality "1"]
[TimeControl "40/5400+30:1800+30"]

{[%evp 9,71,0,4,0,2,0,67,0,-4,-4,-8,-6,19,10,20,0,57,60,87,86,109,100,108,56,56,59,125,112,141,88,169,174,177,175,178,171,161,156,246,257,258,245,258,246,221,209,221,212,204,197,194,185,181,136,137,131,132,150,144,141,219,201,166,164]} 1. e4 {[%emt 0:00:03]} c6 {[%emt 0:00:25]} 2. d4 {[%emt 0:00:05]} d5 {[%emt 0:00:07]} 3. e5 {[%emt 0:00:07]} c5 {[%emt 0:00:16]} 4. Nf3 {[%emt 0:00:08]} cxd4 {[%emt 0:01:38]} 5. Qxd4 {[%emt 0:00:08]} Nc6 {[%emt 0:01:23]} 6. Qf4 {[%emt 0:00:07] B12: Caro-Kann: Advance Variation.} e6 {[%emt 0:03:18]} 7. Nc3 {[%emt 0:00:10] [#]} Bb4 $146 {[%emt 0:04:48]} ({Black should play} 7... Nb4 $11 8. Kd1 (8. Ng5 Nh6 $11) (8. Bb5+ Bd7 $11) 8... a6) ({Predecessor:} 7... Nb4 8. Bd3 Nxd3+ 9. cxd3 Ne7 10. h4 h6 11. h5 Bd7 12. Bd2 Rc8 13. O-O Nf5 {½-½ (43) Fier,A (2567)-Vallejo Pons,F (2702) Chennai 2022}) 8. a3 {[%emt 0:11:56]} ({White should try} 8. Bd3 $14) 8... Bxc3+ $11 {[%emt 0:04:30]} 9. bxc3 {[%emt 0:00:03]} Nge7 {[%emt 0:00:30]} 10. Bd3 {[%emt 0:08:40]} Qc7 {[%emt 0:05:26]} 11. O-O {[%emt 0:12:24][%cal Bh1f1,Bf1e1,Be1e3,Be3f3][%mdl 32]} Ng6 {[%emt 0:03:43]} 12. Bxg6 {[%emt 0:11:57]} fxg6 {[%emt 0:14:14]} (12... hxg6 $11 13. a4 b6) 13. a4 $1 $14 {[%emt 0:04:05]} b6 {[%emt 0:12:31]} 14. Ba3 {[%emt 0:01:41] aiming for c4.} Ba6 {[%emt 0:07:14] Against c4} 15. Rfe1 {[%emt 0:05:37]} h6 {[%emt 0:02:40] Prevents Ng5.} 16. Nd4 {[%emt 0:12:57]} (16. a5 $16) 16... Nxd4 {[%emt 0:02:24]} 17. cxd4 {[%emt 0:00:12]} Qf7 {[%emt 0:07:41]} (17... g5 $14 18. Qg4 Kf7) 18. Qd2 $16 {[%emt 0:00:31] White is more active.} Bc4 {[%emt 0:02:57]} 19. a5 {[%emt 0:04:41]} (19. Re3 $142) 19... b5 {[%emt 0:01:59]} (19... Qd7 $16) 20. Re3 $18 {[%emt 0:02:31]} O-O-O {[%emt 0:02:53]} 21. Rf3 {[%emt 0:05:08]} Qd7 {[%emt 0:00:25]} 22. Bd6 {[%emt 0:04:02]} Kb7 {[%emt 0:01:57]} 23. h4 {[%emt 0:03:29] Against g5} g5 {[%emt 0:04:03]} (23... Ka6 $16 24. Bc5 Rh7) 24. hxg5 {[%emt 0:01:42]} hxg5 {[%emt 0:00:18]} 25. a6+ {[%emt 0:00:39]} ({Much less strong is} 25. Qxg5 $6 Ka6 26. Rf4 Qe8 $18) 25... Ka8 {[%emt 0:00:45] Hoping for ...g4.} 26. Qxg5 {[%emt 0:01:44]} Be2 {[%emt 0:01:30] White is clearly better.} 27. Rf4 {[%emt 0:09:13]} Rh5 {[%emt 0:06:41] [#]} 28. Qxd8+ {[%emt 0:00:00][%mdl 512]} Qxd8 {[%emt 0:00:04]} 29. Rf8 {[%emt 0:00:00] Really sharp!} Qxf8 {[%emt 0:00:05]} 30. Bxf8 {[%emt 0:00:00][%mdl 4096] Endgame KRB-KRB} Rh4 {[%emt 0:03:14]} 31. Re1 {[%emt 0:00:00]} ({Resist} 31. Bxg7 $6 Rxd4 32. f3 Rc4 $14) 31... Bc4 {[%emt 0:00:47]} 32. c3 {[%emt 0:00:00]} ({Don't play} 32. Bxg7 Rxd4 33. Bf8 b4 $16) 32... b4 {[%emt 0:01:23]} 33. Bxb4 {[%emt 0:00:43]} Bxa6 {[%emt 0:00:09]} 34. Re3 {[%emt 0:01:21]} Rf4 {[%emt 0:02:30]} (34... g5 $16 {was necessary.} 35. Be7 Rh7) 35. Rh3 {[%emt 0:00:36]} Bc8 {[%emt 0:00:11]} 36. Rh8 {[%emt 0:00:54] Weighted Error Value: White=0.09 (flawless) /Black=0.21 (precise)} 1/2-1/2

[Event "1st Serbian League 2022"]
[Site "Vrnjacka Banja"]
[Date "2022.09.26"]
[Round "7.24"]
[White "Munizaba, Slobodan"]
[Black "Stankovic, Milos"]
[Result "0-1"]
[ECO "D77"]
[WhiteElo "2416"]
[BlackElo "2439"]
[Annotator "TA"]
[PlyCount "46"]
[EventDate "2022.09.20"]
[EventType "team-tourn"]
[EventCountry "SRB"]
[SourceTitle "playchess.com"]
[Source "ChessBase"]
[SourceQuality "1"]
[TimeControl "40/5400+30:1800+30"]

{[%evp 14,46,33,24,19,-13,12,-10,-8,-61,-68,-69,-72,-156,-145,-158,-115,-105,-122,-109,-65,-69,-85,-466,-468,-459,-460,-403,-387,-29991,-29989,-29989,-780,-5693,-3062]} 1. d4 {[%emt 0:00:05]} Nf6 {[%emt 0:01:11]} 2. Nf3 {[%emt 0:00:08]} g6 {[%emt 0:00:30]} 3. g3 {[%emt 0:00:07]} Bg7 {[%emt 0:00:29]} 4. Bg2 {[%emt 0:00:08]} d5 {[%emt 0:00:32]} 5. O-O {[%emt 0:00:11]} O-O {[%emt 0:00:31]} 6. c4 {[%emt 0:00:24]} dxc4 {[%emt 0:00:28]} 7. Na3 {[%emt 0:00:11]} c5 {[%emt 0:02:32]} 8. Nxc4 {[%emt 0:06:24]} Be6 {[%emt 0:01:30] D77: Fianchetto Grünfeld: 6 0-0: Replies other than 6...c6.} 9. Ne3 {[%emt 0:16:47]} Na6 {[%emt 0:07:38] [#]} 10. Qa4 $146 {[%emt 0:20:11]} ({Predecessor:} 10. dxc5 Nxc5 11. Nd4 Bd7 12. b3 Ng4 13. h3 Ne6 14. Nec2 Nxd4 15. Nxd4 Qb6 16. Bb2 {½-½ (118) Rakhmanov,A (2655)-Paravyan,D (2613) Batumi 2018}) 10... Qb6 {[%emt 0:07:20] The position is equal.} 11. dxc5 {[%emt 0:11:31]} (11. Rd1 $11) 11... Nxc5 $15 {[%emt 0:01:30]} 12. Qa3 {[%emt 0:00:05]} Nfe4 {[%emt 0:00:36] Prevents Ng5.} 13. Rb1 {[%emt 0:03:35]} (13. Nd1 $142) 13... Rfd8 $1 $17 {[%emt 0:07:12][%cal Bf8d8,Bd8d4,Bd4e4,Be4h4][%mdl 32]} 14. h4 {[%emt 0:08:35]} Rac8 {[%emt 0:05:06] Black has more active pieces. The white rooks are badly placed.} 15. Ng5 {[%emt 0:01:40]} Nxg5 {[%emt 0:02:54]} 16. hxg5 {[%emt 0:28:28]} Rd4 {[%emt 0:01:04] Strongly threatening ...Ra4.} 17. b3 {[%emt 0:00:00] Prevents Ra4.} Ne4 $36 {[%emt 0:05:31][%mdl 2048] Black is really pushing.} 18. Rb2 $2 {[%emt 0:00:00][%mdl 8192] [#] Loses the game.} (18. Bb2 $2 Nxg3 $1 19. Rfe1 (19. fxg3 $2 Rd2 $19) 19... Rd2 20. Bxg7 Kxg7 $19) (18. Bxe4 $17 {is tougher.} Rxe4 19. Qxe7) 18... Nxg3 $1 $19 {[%emt 0:22:21][%mdl 512]} 19. fxg3 {[%emt 0:00:00] [#]} Re4 $3 {[%emt 0:01:29][%mdl 512] Threatens to win with ...Rxc1.} 20. Kh2 {[%emt 0:00:00]} ({Don't play} 20. Bxe4 Rxc1 21. Kh2 Qxe3 22. Rxc1 Qxc1 23. Qxa7 Bxb2) 20... Rxc1 {[%emt 0:02:47]} 21. Nd5 {[%emt 0:00:00]} (21. Rd2 $19 Be5 22. Kh1 (22. Bxe4 $2 {too greedy.} Qxe3 23. b4 Qxa3 $19) 22... Rxf1+ 23. Nxf1) 21... Bxd5 {[%emt 0:01:29] This bishop pair is nice.} 22. Rxc1 {[%emt 0:00:00] [#]} Be5 {[%emt 0:03:14]} (22... Rh4+ $142 $3 {[%mdl 512]} 23. gxh4 Be5+ 24. Kh1 Qe3 25. Bf3 Qf2 26. e4 Qxf3+ 27. Kg1 Bd4+ 28. Kh2 Qf4+ 29. Kh3 Be6+ 30. Kg2 Qxe4+ 31. Kh2 Qxh4+ 32. Kg2 Qh3#) 23. Rc5 {[%emt 0:00:09]} Rh4+ {[%emt 0:00:42] Weighted Error Value: White=1.08/Black=0.27 (precise)} 0-1

[Event "1st Serbian League 2022"]
[Site "Vrnjacka Banja"]
[Date "2022.09.26"]
[Round "7.26"]
[White "Ivic, Velimir"]
[Black "Djokic, Mihailo"]
[Result "1-0"]
[ECO "B48"]
[WhiteElo "2553"]
[BlackElo "2197"]
[Annotator "TA"]
[PlyCount "51"]
[EventDate "2022.09.20"]
[EventType "team-tourn"]
[EventCountry "SRB"]
[SourceTitle "playchess.com"]
[Source "ChessBase"]
[SourceQuality "1"]
[TimeControl "40/5400+30:1800+30"]

{[%evp 15,51,0,31,7,8,10,43,41,76,62,72,68,75,65,70,70,70,72,127,107,150,149,168,195,356,402,411,380,547,519,615,631,617,602,628,622,1119,1045]} 1. e4 {[%emt 0:00:06]} c5 {[%emt 0:00:04]} 2. Nf3 {[%emt 0:00:05]} e6 {[%emt 0:00:03]} 3. d4 {[%emt 0:00:25]} cxd4 {[%emt 0:00:07]} 4. Nxd4 {[%emt 0:00:05]} Nc6 {[%emt 0:00:05]} 5. Nc3 {[%emt 0:00:17]} Qc7 {[%emt 0:00:06]} 6. Be3 {[%emt 0:01:32]} a6 {[%emt 0:00:04]} 7. Bd3 {[%emt 0:02:29]} Nf6 {[%emt 0:04:13]} 8. Qe2 {[%emt 0:00:39]} b5 {[%emt 0:01:17]} 9. Nxc6 {[%emt 0:01:24] B48: Sicilian: Taimanov: 5 Nc3 Qc7 6 Be3 a6 without Be2.} dxc6 {[%emt 0:03:57]} 10. a4 {[%emt 0:00:38][%cal Ra4b5]} b4 {[%emt 0:06:51]} 11. Nb1 {[%emt 0:01:40] [#] White is slightly better.} h5 $146 {[%emt 0:09:50]} ({Predecessor:} 11... Nd7 12. a5 Bc5 13. Nd2 O-O 14. O-O Qa7 15. Bxc5 Qxc5 16. Nb3 Qe5 17. f4 Qxb2 {1-0 (25) Zhang,P (2462)-Erkhembayar,D (2303) Shenyang 1999}) 12. h3 {[%emt 0:01:30]} c5 {[%emt 0:02:11][%cal Oc5c4]} 13. Nd2 {[%emt 0:01:20]} Bb7 {[%emt 0:00:23]} 14. O-O {[%emt 0:08:03]} Be7 {[%emt 0:08:32]} 15. c3 {[%emt 0:12:59]} bxc3 {[%emt 0:06:33]} 16. bxc3 {[%emt 0:00:07]} c4 {[%emt 0:05:10]} (16... O-O $142) 17. Bc2 $16 {[%emt 0:06:17]} (17. Nxc4 $6 Nxe4 18. Rfe1 Nc5 $14) 17... a5 {[%emt 0:10:24]} 18. Rab1 {[%emt 0:02:14]} (18. Nxc4 $6 Nxe4 19. Bxe4 Bxe4 $14) (18. Qxc4 $6 Qxc4 19. Nxc4 Bxe4 $11) 18... e5 {[%emt 0:02:54]} 19. f4 {[%emt 0:07:28]} ({Don't do} 19. Qxc4 $6 Qxc4 20. Nxc4 Bxe4 21. Bxe4 Nxe4 $16) 19... Ba6 $2 {[%emt 0:02:29] [#]} (19... Nd7 {was called for.} 20. fxe5 (20. Qxc4 Qxc4 21. Nxc4 Ba6 $14) (20. Nxc4 Ba6 $16) 20... Nxe5) 20. fxe5 $18 {[%emt 0:04:04]} Qxe5 {[%emt 0:00:25]} 21. Nf3 {[%emt 0:02:58]} Qg3 {[%emt 0:06:38]} (21... Qxc3 $2 22. e5 Nd5 23. Bd4 $18) (21... Qc7 $142 22. Bd4 Nd7 23. Bxg7 Rg8) 22. Bf2 {[%emt 0:09:45] White is clearly winning.} Qc7 {[%emt 0:02:47]} 23. e5 {[%emt 0:01:32][%cal Be4e5,Be5e6][%mdl 32]} Nd5 {[%emt 0:02:12]} 24. Nd4 {[%emt 0:06:59]} Bc5 {[%emt 0:09:30]} 25. e6 {[%emt 0:01:18] [#] exf7+ would kill now.} O-O-O {[%emt 0:02:51]} 26. Bf5 {[%emt 0:01:30] Weighted Error Value: White=0.04 (flawless) /Black=0.49} 1-0